[Event "105th British-ch 2018"]
[Site "Hull"]
[Date "2018.08.03"]
[Round "7"]
[White "Murphy, Conor E"]
[Black "Rudd, Jack"]
[Result "1-0"]
[ECO "B14"]
[WhiteElo "2336"]
[BlackElo "2244"]
[Annotator "NA"]
[PlyCount "59"]
[EventDate "2018.07.28"]
[EventType "swiss"]
[EventCountry "GBR"]
[SourceTitle "playchess.com"]
[Source "ChessBase"]
[SourceQuality "1"]
[TimeControl "40/5400+30:1800+30"]

1. e4 {[%emt 0:00:00]} c6 {[%emt 0:00:00]} 2. d4 {[%emt 0:00:00]} d5 {[%emt 0:00:00]} 3. exd5 {[%emt 0:00:07]} cxd5 {[%emt 0:00:00]} 4. c4 {[%emt 0:00:06]} Nf6 {[%emt 0:00:00]} 5. Nc3 {[%emt 0:00:05]} Nc6 {[%emt 0:00:00]} 6. Nf3 {[%emt 0:00:05]} e6 {[%emt 0:00:15]} 7. c5 {[%emt 0:01:05]} Be7 {[%emt 0:00:28]} 8. Bb5 {[%emt 0:00:44]} O-O {[%emt 0:00:11]} 9. O-O {[%emt 0:00:17]} Bd7 {[%emt 0:01:53]} 10. Re1 {[%emt 0:21:47]} b6 {[%emt 0:00:51]} 11. Bxc6 {[%emt 0:14:14]} Bxc6 {[%emt 0:00:33]} 12. b4 {[%emt 0:00:16]} bxc5 {[%emt 0:00:19]} 13. bxc5 {[%emt 0:00:40]} Nd7 {[%emt 0:00:36]} 14. Bf4 {[%emt 0:02:08]} Re8 {[%emt 0:01:07]} 15. Qd3 {[%emt 0:03:47]} Qa5 {[%emt 0:01:07]} 16. Re3 {[%emt 0:05:07]} Bf6 {[%emt 0:05:34]} 17. Rae1 {[%emt 0:04:38]} Rec8 {[%emt 0:03:51]} 18. h4 {[%emt 0:08:14]} h6 {[%emt 0:01:20]} 19. g4 {[%emt 0:03:04]} Bd8 {[%emt 0:04:26]} 20. Bxh6 {[%emt 0:15:29]} gxh6 {[%emt 0:02:01]} 21. Rxe6 {[%emt 0:00:05]} Bf6 {[%emt 0:00:12]} 22. g5 {[%emt 0:00:40]} Nxc5 {[%emt 0:01:22]} 23. Qf5 {[%emt 0:03:49]} Nxe6 {[%emt 0:03:34]} 24. Rxe6 {[%emt 0:03:33]} Bg7 {[%emt 0:01:16]} 25. Re7 {[%emt 0:01:23]} Be8 {[%emt 0:01:16]} 26. gxh6 {[%emt 0:02:59]} Qa6 {[%emt 0:00:21]} 27. hxg7 {[%emt 0:07:07]} Rxc3 {[%emt 0:00:17]} 28. Ne5 {[%emt 0:01:02]} Rc1+ {[%emt 0:00:32]} 29. Kh2 {[%emt 0:00:04]} Qf1 {[%emt 0:00:36]} 30. Rxe8+ {[%emt 0:00:07]} 1-0

[Event "105th British-ch 2018"]
[Site "Hull"]
[Date "2018.08.03"]
[Round "7"]
[White "Webb, Laurence"]
[Black "Longson, Sarah N"]
[Result "1-0"]
[ECO "D07"]
[WhiteElo "2306"]
[BlackElo "2123"]
[Annotator "NA"]
[PlyCount "45"]
[EventDate "2018.07.28"]
[EventType "swiss"]
[EventCountry "GBR"]
[SourceTitle "playchess.com"]
[Source "ChessBase"]
[SourceQuality "1"]
[TimeControl "40/5400+30:1800+30"]

1. d4 {[%emt 0:00:41]} d5 {[%emt 0:00:00]} 2. c4 {[%emt 0:00:22]} dxc4 {[%emt 0:00:00]} 3. Nf3 {[%emt 0:00:19]} Nf6 {[%emt 0:00:00]} 4. Nc3 {[%emt 0:00:20]} Nc6 {[%emt 0:04:00]} 5. d5 {[%emt 0:01:57]} Na5 {[%emt 0:00:13]} 6. Qa4+ {[%emt 0:00:49]} c6 {[%emt 0:00:06]} 7. b4 {[%emt 0:00:55]} cxb3 {[%emt 0:15:39]} 8. axb3 {[%emt 0:00:23]} e6 {[%emt 0:01:58]} 9. b4 {[%emt 0:01:05]} Nc4 {[%emt 0:23:16]} 10. dxc6 {[%emt 0:01:40]} b6 {[%emt 0:07:07]} 11. e4 {[%emt 0:04:19]} b5 {[%emt 0:08:33]} 12. Qxb5 {[%emt 0:07:28]} Nd6 {[%emt 0:03:59]} 13. Qa4 {[%emt 0:04:27]} e5 {[%emt 0:06:09]} 14. c7+ {[%emt 0:07:19]} Qd7 {[%emt 0:00:05]} 15. Nxe5 {[%emt 0:02:27]} Qxa4 {[%emt 0:00:13]} 16. Nxa4 {[%emt 0:03:02]} Bb7 {[%emt 0:03:06]} 17. f3 {[%emt 0:04:13]} Be7 {[%emt 0:01:15]} 18. Nc5 {[%emt 0:02:24]} Bc8 {[%emt 0:06:16]} 19. Nc6 {[%emt 0:00:59]} Nb7 {[%emt 0:03:06]} 20. Rxa7 {[%emt 0:08:51]} Rxa7 {[%emt 0:00:27]} 21. Nxa7 {[%emt 0:00:03]} Nxc5 {[%emt 0:03:52]} 22. Nxc8 {[%emt 0:02:22]} Ne6 {[%emt 0:01:52]} 23. Nd6+ {[%emt 0:02:56]} 1-0

[Event "105th British-ch 2018"]
[Site "Hull"]
[Date "2018.08.03"]
[Round "7"]
[White "Abdulla, Murad"]
[Black "Iyengar, Ilya"]
[Result "1-0"]
[ECO "B82"]
[WhiteElo "2281"]
[BlackElo "2017"]
[Annotator "NA"]
[PlyCount "85"]
[EventDate "2018.07.28"]
[EventType "swiss"]
[EventCountry "GBR"]
[SourceTitle "playchess.com"]
[Source "ChessBase"]
[SourceQuality "1"]
[TimeControl "40/5400+30:1800+30"]

1. e4 {[%emt 0:00:00]} c5 {[%emt 0:04:51]} 2. Nf3 {[%emt 0:00:00]} e6 {[%emt 0:00:15]} 3. d4 {[%emt 0:00:00]} cxd4 {[%emt 0:00:05]} 4. Nxd4 {[%emt 0:00:00]} Nf6 {[%emt 0:00:06]} 5. Nc3 {[%emt 0:00:00]} d6 {[%emt 0:00:11]} 6. f4 {[%emt 0:00:00]} a6 {[%emt 0:00:13]} 7. Qf3 {[%emt 0:00:02]} Qc7 {[%emt 0:02:17]} 8. Be3 {[%emt 0:00:10]} b5 {[%emt 0:07:41]} 9. a3 {[%emt 0:00:55]} Bb7 {[%emt 0:00:16]} 10. g4 {[%emt 0:00:54]} Nc6 {[%emt 0:02:33]} 11. g5 {[%emt 0:00:47]} Nd7 {[%emt 0:00:50]} 12. h4 {[%emt 0:02:20]} O-O-O {[%emt 0:07:44]} 13. Bg2 {[%emt 0:06:24]} Kb8 {[%emt 0:10:28]} 14. O-O {[%emt 0:03:52]} Nxd4 {[%emt 0:47:20]} 15. Bxd4 {[%emt 0:00:30]} d5 {[%emt 0:00:16]} 16. exd5 {[%emt 0:03:43]} Bc5 {[%emt 0:01:02]} 17. Rad1 {[%emt 0:02:29]} Nb6 {[%emt 0:02:09]} 18. Qf2 {[%emt 0:12:08]} Bxd4 {[%emt 0:03:36]} 19. Rxd4 {[%emt 0:00:28]} Nxd5 {[%emt 0:01:38]} 20. Nxd5 {[%emt 0:00:18]} Bxd5 {[%emt 0:00:11]} 21. Bxd5 {[%emt 0:00:15]} Rxd5 {[%emt 0:02:33]} 22. Rxd5 {[%emt 0:00:12]} exd5 {[%emt 0:00:05]} 23. Rd1 {[%emt 0:00:06]} Rd8 {[%emt 0:00:57]} 24. Qd4 {[%emt 0:01:22]} Qa7 {[%emt 0:01:13]} 25. Qxa7+ {[%emt 0:02:56]} Kxa7 {[%emt 0:00:06]} 26. Re1 {[%emt 0:00:04]} Rd7 {[%emt 0:00:13]} 27. Kf2 {[%emt 0:00:29]} Kb6 {[%emt 0:00:11]} 28. Re8 {[%emt 0:00:25]} h6 {[%emt 0:01:24]} 29. Ke3 {[%emt 0:00:24]} hxg5 {[%emt 0:02:51]} 30. fxg5 {[%emt 0:00:11]} g6 {[%emt 0:00:22]} 31. b3 {[%emt 0:02:15]} d4+ {[%emt 0:01:16]} 32. Kd3 {[%emt 0:00:53]} Rc7 {[%emt 0:00:31]} 33. Rb8+ {[%emt 0:00:18]} Ka5 {[%emt 0:00:31]} 34. Rd8 {[%emt 0:00:36]} Rc3+ {[%emt 0:00:28]} 35. Kd2 {[%emt 0:00:09]} Rh3 {[%emt 0:00:19]} 36. Rd6 {[%emt 0:01:40]} b4 {[%emt 0:00:14]} 37. axb4+ {[%emt 0:00:11]} Kxb4 {[%emt 0:00:21]} 38. Rxd4+ {[%emt 0:00:10]} Kc5 {[%emt 0:00:29]} 39. Rf4 {[%emt 0:00:04]} Rh2+ {[%emt 0:00:27]} 40. Kc3 {[%emt 0:00:10]} Rh3+ {[%emt 0:00:07]} 41. Kb2 {[%emt 0:30:05]} Kb5 {[%emt 0:30:36]} 42. Rxf7 {[%emt 0:00:10]} Rxh4 {[%emt 0:00:07]} 43. Rf6 {[%emt 0:00:07]} 1-0

[Event "105th British-ch 2018"]
[Site "Hull"]
[Date "2018.08.03"]
[Round "7"]
[White "Kalavannan, Koby"]
[Black "Hawkins, Jonathan"]
[Result "1/2-1/2"]
[ECO "E03"]
[WhiteElo "2277"]
[BlackElo "2590"]
[Annotator "RC"]
[PlyCount "53"]
[EventDate "2018.07.28"]
[EventType "swiss"]
[EventCountry "GBR"]
[SourceTitle "playchess.com"]
[Source "ChessBase"]
[SourceQuality "1"]
[TimeControl "40/5400+30:1800+30"]

1. d4 {[%emt 0:00:00]} d5 {[%emt 0:00:37]} 2. c4 {[%emt 0:00:00]} e6 {[%emt 0:00:06]} 3. g3 {[%emt 0:00:00]} Nf6 {[%emt 0:00:23]} 4. Bg2 {[%emt 0:00:00]} dxc4 {[%emt 0:01:01]} 5. Qa4+ {[%emt 0:00:06]} Nbd7 {[%emt 0:00:29]} 6. Qxc4 {[%emt 0:00:08]} c5 {[%emt 0:01:15]} 7. dxc5 {[%emt 0:03:28]} Bxc5 {[%emt 0:06:24]} 8. Nf3 {[%emt 0:08:32]} a6 {[%emt 0:01:05]} 9. b4 {[%emt 0:07:47]} Bd6 {[%emt 0:06:54]} 10. O-O {[%emt 0:01:10]} Qe7 {[%emt 0:01:22]} 11. a3 {[%emt 0:03:00]} O-O {[%emt 0:02:41]} 12. Rd1 {[%emt 0:01:54]} a5 {[%emt 0:05:02]} 13. Qd3 {[%emt 0:22:48]} Bc7 {[%emt 0:04:13]} 14. Qc2 {[%emt 0:01:58]} Bb6 {[%emt 0:02:11]} 15. b5 {[%emt 0:03:48]} a4 {[%emt 0:06:59]} 16. h3 {[%emt 0:16:48]} Nc5 {[%emt 0:12:22]} 17. Nbd2 {[%emt 0:01:01]} Rd8 {[%emt 0:04:54]} 18. Ne5 {[%emt 0:09:14]} Ba5 {[%emt 0:13:48]} 19. Rb1 {[%emt 0:02:18]} Nd5 {[%emt 0:02:39]} 20. Bb2 {[%emt 0:05:40]} f6 {[%emt 0:01:14]} 21. Nec4 {[%emt 0:00:41]} Bc7 {[%emt 0:07:00]} 22. Ba1 {[%emt 0:07:08]} Nd7 {[%emt 0:04:48]} 23. Bd4 {[%emt 0:01:09]} N7b6 {[%emt 0:01:41]} 24. e4 {[%emt 0:00:56]} Nxc4 {[%emt 0:02:58]} 25. Nxc4 {[%emt 0:00:29]} e5 {[%emt 0:00:06]} 26. exd5 {[%emt 0:01:01]} exd4 {[%emt 0:00:19]} 27. Rxd4 {[%emt 0:03:14]} 1/2-1/2

[Event "105th British-ch 2018"]
[Site "Hull"]
[Date "2018.08.03"]
[Round "7"]
[White "Mcmichael, Richard J"]
[Black "Muir, Andrew Joseph"]
[Result "0-1"]
[ECO "A01"]
[WhiteElo "2245"]
[BlackElo "2291"]
[Annotator "NA"]
[PlyCount "81"]
[EventDate "2018.07.28"]
[EventType "swiss"]
[EventCountry "GBR"]
[SourceTitle "playchess.com"]
[Source "ChessBase"]
[SourceQuality "1"]
[TimeControl "40/5400+30:1800+30"]

1. b3 {[%emt 0:00:00]} g6 {[%emt 0:00:00]} 2. Bb2 {[%emt 0:00:00]} Nf6 {[%emt 0:00:00]} 3. Bxf6 {[%emt 0:00:01]} exf6 {[%emt 0:00:00]} 4. c4 {[%emt 0:00:08]} d5 {[%emt 0:01:23]} 5. cxd5 {[%emt 0:00:29]} Qxd5 {[%emt 0:00:13]} 6. Nc3 {[%emt 0:00:27]} Qa5 {[%emt 0:07:08]} 7. e3 {[%emt 0:04:03]} Ba3 {[%emt 0:10:25]} 8. Nb5 {[%emt 0:15:09]} Be7 {[%emt 0:03:17]} 9. Nf3 {[%emt 0:01:53]} a6 {[%emt 0:02:37]} 10. Nc3 {[%emt 0:02:18]} O-O {[%emt 0:01:53]} 11. Be2 {[%emt 0:01:42]} Ba3 {[%emt 0:02:35]} 12. O-O {[%emt 0:08:14]} Nc6 {[%emt 0:03:45]} 13. Ne4 {[%emt 0:06:12]} f5 {[%emt 0:16:46]} 14. Ng3 {[%emt 0:01:13]} Nb4 {[%emt 0:10:49]} 15. d4 {[%emt 0:03:43]} Bb2 {[%emt 0:02:58]} 16. Rb1 {[%emt 0:02:54]} Bc3 {[%emt 0:00:05]} 17. Qc1 {[%emt 0:05:18]} Nd5 {[%emt 0:00:44]} 18. a3 {[%emt 0:04:16]} c5 {[%emt 0:01:13]} 19. Bc4 {[%emt 0:04:20]} Be6 {[%emt 0:01:14]} 20. Ne2 {[%emt 0:04:12]} cxd4 {[%emt 0:00:22]} 21. b4 {[%emt 0:02:37]} Qc7 {[%emt 0:02:22]} 22. Bxd5 {[%emt 0:04:57]} Bxd5 {[%emt 0:00:21]} 23. Nfxd4 {[%emt 0:06:25]} Rac8 {[%emt 0:01:00]} 24. Qd1 {[%emt 0:02:35]} Bc4 {[%emt 0:03:35]} 25. Rc1 {[%emt 0:06:18]} Bb2 {[%emt 0:01:52]} 26. Rc2 {[%emt 0:00:12]} Bxa3 {[%emt 0:00:38]} 27. Qa1 {[%emt 0:01:05]} Bxb4 {[%emt 0:00:31]} 28. Rfc1 {[%emt 0:00:29]} b5 {[%emt 0:00:51]} 29. Qxa6 {[%emt 0:00:52]} Qd7 {[%emt 0:04:40]} 30. h4 {[%emt 0:03:14]} Ra8 {[%emt 0:06:03]} 31. Qb6 {[%emt 0:00:10]} Ba5 {[%emt 0:03:44]} 32. Qf6 {[%emt 0:01:53]} Bd8 {[%emt 0:00:45]} 33. Qe5 {[%emt 0:00:23]} Bxh4 {[%emt 0:00:51]} 34. Qf4 {[%emt 0:01:06]} Bf6 {[%emt 0:01:41]} 35. Rd2 {[%emt 0:00:23]} Rfe8 {[%emt 0:01:13]} 36. Ng3 {[%emt 0:00:46]} Be5 {[%emt 0:01:36]} 37. Qh4 {[%emt 0:00:39]} Qd8 {[%emt 0:00:56]} 38. Qh3 {[%emt 0:00:21]} Qf6 {[%emt 0:00:33]} 39. Kh2 {[%emt 0:02:54]} f4 {[%emt 0:00:36]} 40. Ne4 {[%emt 0:00:39]} fxe3+ {[%emt 0:00:25]} 41. g3 {[%emt 0:30:06]} 0-1

[Event "105th British-ch 2018"]
[Site "Hull"]
[Date "2018.08.03"]
[Round "7"]
[White "Wall, Tim P"]
[Black "Zakarian, David"]
[Result "1-0"]
[ECO "B08"]
[WhiteElo "2234"]
[BlackElo "2354"]
[Annotator "NA"]
[PlyCount "97"]
[EventDate "2018.07.28"]
[EventType "swiss"]
[EventCountry "GBR"]
[SourceTitle "playchess.com"]
[Source "ChessBase"]
[SourceQuality "1"]
[TimeControl "40/5400+30:1800+30"]

1. e4 {[%emt 0:01:43]} Nc6 {[%emt 0:00:00]} 2. Nf3 {[%emt 0:01:46]} d6 {[%emt 0:00:00]} 3. d4 {[%emt 0:00:24]} Nf6 {[%emt 0:00:02]} 4. Nc3 {[%emt 0:00:18]} g6 {[%emt 0:00:08]} 5. d5 {[%emt 0:00:50]} Nb8 {[%emt 0:00:05]} 6. h3 {[%emt 0:00:23]} Bg7 {[%emt 0:00:07]} 7. Bc4 {[%emt 0:00:20]} O-O {[%emt 0:00:28]} 8. O-O {[%emt 0:00:18]} c6 {[%emt 0:04:59]} 9. a4 {[%emt 0:01:30]} a5 {[%emt 0:01:18]} 10. Re1 {[%emt 0:01:53]} Qc7 {[%emt 0:06:00]} 11. Qe2 {[%emt 0:05:00]} Na6 {[%emt 0:06:32]} 12. Bg5 {[%emt 0:07:26]} Nb4 {[%emt 0:04:28]} 13. Bb3 {[%emt 0:08:32]} Re8 {[%emt 0:10:29]} 14. Rad1 {[%emt 0:10:25]} Nd7 {[%emt 0:18:15]} 15. Bf4 {[%emt 0:14:45]} Ne5 {[%emt 0:09:51]} 16. Nxe5 {[%emt 0:05:27]} dxe5 {[%emt 0:00:30]} 17. Be3 {[%emt 0:03:12]} Bd7 {[%emt 0:03:21]} 18. Qf3 {[%emt 0:08:39]} cxd5 {[%emt 0:02:47]} 19. exd5 {[%emt 0:04:43]} Rf8 {[%emt 0:05:32]} 20. Bg5 {[%emt 0:06:25]} Rae8 {[%emt 0:01:48]} 21. Qe2 {[%emt 0:05:20]} h6 {[%emt 0:00:54]} 22. Bxe7 {[%emt 0:02:11]} Rxe7 {[%emt 0:00:10]} 23. d6 {[%emt 0:00:31]} Qd8 {[%emt 0:00:05]} 24. dxe7 {[%emt 0:00:11]} Qxe7 {[%emt 0:00:04]} 25. Ne4 {[%emt 0:01:34]} Kh7 {[%emt 0:01:01]} 26. c3 {[%emt 0:01:21]} Na6 {[%emt 0:02:17]} 27. Qd2 {[%emt 0:03:24]} Bc6 {[%emt 0:01:01]} 28. Qd6 {[%emt 0:01:41]} Qh4 {[%emt 0:04:38]} 29. Bc2 {[%emt 0:01:30]} f5 {[%emt 0:01:39]} 30. Ng3 {[%emt 0:00:42]} e4 {[%emt 0:00:16]} 31. b4 {[%emt 0:00:35]} Rf6 {[%emt 0:03:10]} 32. Qe7 {[%emt 0:01:30]} axb4 {[%emt 0:01:15]} 33. cxb4 {[%emt 0:00:16]} e3 {[%emt 0:00:08]} 34. Rxe3 {[%emt 0:00:34]} Qxb4 {[%emt 0:08:15]} 35. Rb1 {[%emt 0:00:21]} Qd2 {[%emt 0:01:41]} 36. Nxf5 {[%emt 0:00:53]} Rxf5 {[%emt 0:01:12]} 37. Bxf5 {[%emt 0:00:21]} gxf5 {[%emt 0:00:03]} 38. Rg3 {[%emt 0:00:30]} Qd4 {[%emt 0:00:11]} 39. Re1 {[%emt 0:01:12]} Be4 {[%emt 0:01:27]} 40. Kh1 {[%emt 0:00:36]} Qe5 {[%emt 0:03:10]} 41. Qf7 {[%emt 0:09:16]} Qf6 {[%emt 0:04:19]} 42. Qc4 {[%emt 0:03:11]} Kh8 {[%emt 0:09:21]} 43. Rge3 {[%emt 0:06:13]} Qf8 {[%emt 0:07:21]} 44. f3 {[%emt 0:02:34]} Bc6 {[%emt 0:00:05]} 45. Re7 {[%emt 0:00:13]} Qf6 {[%emt 0:03:59]} 46. Rf7 {[%emt 0:05:24]} Qc3 {[%emt 0:04:26]} 47. Rf8+ {[%emt 0:01:29]} Kh7 {[%emt 0:00:03]} 48. Qg8+ {[%emt 0:00:14]} Kg6 {[%emt 0:00:03]} 49. Qf7+ {[%emt 0:00:21]} 1-0

[Event "105th British-ch 2018"]
[Site "Hull"]
[Date "2018.08.03"]
[Round "7"]
[White "Moore, Graham J"]
[Black "Fitzsimons, David"]
[Result "1/2-1/2"]
[ECO "B08"]
[WhiteElo "2218"]
[BlackElo "2328"]
[Annotator "NA"]
[PlyCount "69"]
[EventDate "2018.07.28"]
[EventType "swiss"]
[EventCountry "GBR"]
[SourceTitle "playchess.com"]
[Source "ChessBase"]
[SourceQuality "1"]
[TimeControl "40/5400+30:1800+30"]

1. Nf3 {[%emt 0:00:00]} g6 {[%emt 0:00:00]} 2. e4 {[%emt 0:00:00]} d6 {[%emt 0:00:00]} 3. d4 {[%emt 0:00:00]} Nf6 {[%emt 0:00:00]} 4. Nc3 {[%emt 0:02:29]} Bg7 {[%emt 0:00:00]} 5. Bg5 {[%emt 0:00:14]} O-O {[%emt 0:00:08]} 6. Qd2 {[%emt 0:00:22]} d5 {[%emt 0:04:51]} 7. exd5 {[%emt 0:05:48]} Nxd5 {[%emt 0:02:54]} 8. Bh6 {[%emt 0:00:17]} Nc6 {[%emt 0:02:54]} 9. Bxg7 {[%emt 0:01:21]} Kxg7 {[%emt 0:00:01]} 10. Bc4 {[%emt 0:02:10]} Nb6 {[%emt 0:02:22]} 11. Be2 {[%emt 0:03:13]} Be6 {[%emt 0:05:42]} 12. Rd1 {[%emt 0:06:34]} Bd5 {[%emt 0:03:13]} 13. O-O {[%emt 0:03:37]} e6 {[%emt 0:03:00]} 14. b3 {[%emt 0:02:28]} a6 {[%emt 0:06:24]} 15. Nb1 {[%emt 0:00:56]} Qd7 {[%emt 0:08:43]} 16. c4 {[%emt 0:06:30]} Bxf3 {[%emt 0:00:08]} 17. Bxf3 {[%emt 0:00:06]} Rad8 {[%emt 0:00:56]} 18. d5 {[%emt 0:02:41]} exd5 {[%emt 0:05:28]} 19. cxd5 {[%emt 0:00:06]} Ne5 {[%emt 0:02:47]} 20. Qd4 {[%emt 0:07:35]} Qd6 {[%emt 0:06:25]} 21. g3 {[%emt 0:08:43]} c5 {[%emt 0:03:20]} 22. Qc3 {[%emt 0:03:12]} Rfe8 {[%emt 0:04:01]} 23. Bg2 {[%emt 0:00:36]} Kg8 {[%emt 0:00:42]} 24. Na3 {[%emt 0:00:31]} Re7 {[%emt 0:02:29]} 25. Nc2 {[%emt 0:04:59]} Qf6 {[%emt 0:09:26]} 26. Qxc5 {[%emt 0:05:46]} Rc8 {[%emt 0:00:49]} 27. Qb4 {[%emt 0:00:06]} Nxd5 {[%emt 0:01:49]} 28. Bxd5 {[%emt 0:07:50]} Rxc2 {[%emt 0:00:18]} 29. Bxb7 {[%emt 0:00:16]} Rxa2 {[%emt 0:01:18]} 30. Bg2 {[%emt 0:01:15]} Re8 {[%emt 0:01:47]} 31. Rd6 {[%emt 0:02:26]} a5 {[%emt 0:07:22]} 32. Qb6 {[%emt 0:03:32]} Qf5 {[%emt 0:00:59]} 33. Rd5 {[%emt 0:00:57]} Nf3+ {[%emt 0:03:00]} 34. Bxf3 {[%emt 0:01:20]} Qxf3 {[%emt 0:00:02]} 35. Rxa5 {[%emt 0:09:01]} 1/2-1/2

[Event "105th British-ch 2018"]
[Site "Hull"]
[Date "2018.08.03"]
[Round "7"]
[White "Tozer, Philip"]
[Black "Kalaiyalahan, Akshaya"]
[Result "1-0"]
[ECO "A34"]
[WhiteElo "2142"]
[BlackElo "2138"]
[Annotator "NA"]
[PlyCount "111"]
[EventDate "2018.07.28"]
[EventType "swiss"]
[EventCountry "GBR"]
[SourceTitle "playchess.com"]
[Source "ChessBase"]
[SourceQuality "1"]
[TimeControl "40/5400+30:1800+30"]

1. c4 {[%emt 0:00:00]} b6 {[%emt 0:00:00]} 2. Nc3 {[%emt 0:00:00]} Bb7 {[%emt 0:00:00]} 3. e4 {[%emt 0:00:00]} c5 {[%emt 0:00:03]} 4. g3 {[%emt 0:01:29]} Nc6 {[%emt 0:00:16]} 5. Bg2 {[%emt 0:00:19]} g6 {[%emt 0:00:28]} 6. Nge2 {[%emt 0:01:01]} Bg7 {[%emt 0:00:14]} 7. d3 {[%emt 0:01:10]} d6 {[%emt 0:00:59]} 8. O-O {[%emt 0:05:59]} h5 {[%emt 0:00:29]} 9. h4 {[%emt 0:08:18]} Qd7 {[%emt 0:06:13]} 10. Bg5 {[%emt 0:02:55]} e6 {[%emt 0:04:54]} 11. Rb1 {[%emt 0:04:43]} Nge7 {[%emt 0:04:43]} 12. a3 {[%emt 0:01:24]} Nd4 {[%emt 0:01:52]} 13. Nxd4 {[%emt 0:03:29]} cxd4 {[%emt 0:01:36]} 14. Ne2 {[%emt 0:00:19]} O-O {[%emt 0:04:49]} 15. b4 {[%emt 0:04:59]} Rfe8 {[%emt 0:04:11]} 16. Qb3 {[%emt 0:04:14]} b5 {[%emt 0:18:54]} 17. cxb5 {[%emt 0:03:55]} Qxb5 {[%emt 0:00:07]} 18. a4 {[%emt 0:02:58]} Qd7 {[%emt 0:00:25]} 19. b5 {[%emt 0:01:30]} d5 {[%emt 0:07:15]} 20. Bxe7 {[%emt 0:03:41]} Rxe7 {[%emt 0:00:45]} 21. exd5 {[%emt 0:03:26]} Bxd5 {[%emt 0:00:11]} 22. Bxd5 {[%emt 0:00:08]} exd5 {[%emt 0:01:25]} 23. Nf4 {[%emt 0:04:41]} Re5 {[%emt 0:01:42]} 24. Rfe1 {[%emt 0:08:57]} Rf5 {[%emt 0:01:40]} 25. Ng2 {[%emt 0:00:56]} g5 {[%emt 0:06:48]} 26. Qd1 {[%emt 0:06:08]} g4 {[%emt 0:07:30]} 27. Rc1 {[%emt 0:06:04]} Rf3 {[%emt 0:05:45]} 28. Re2 {[%emt 0:00:16]} Rf8 {[%emt 0:11:14]} 29. Rc6 {[%emt 0:04:33]} Kh7 {[%emt 0:00:49]} 30. Ne1 {[%emt 0:04:08]} Rf5 {[%emt 0:00:18]} 31. Qc1 {[%emt 0:01:24]} Re8 {[%emt 0:00:58]} 32. Rcc2 {[%emt 0:04:51]} Rfe5 {[%emt 0:01:36]} 33. Qd1 {[%emt 0:02:16]} Qe7 {[%emt 0:01:45]} 34. Rxe5 {[%emt 0:00:44]} Qxe5 {[%emt 0:00:04]} 35. Kf1 {[%emt 0:00:22]} f5 {[%emt 0:01:11]} 36. Re2 {[%emt 0:00:38]} Qb8 {[%emt 0:00:22]} 37. Rxe8 {[%emt 0:00:14]} Qxe8 {[%emt 0:00:04]} 38. Qc1 {[%emt 0:01:46]} Qe7 {[%emt 0:02:23]} 39. Qc6 {[%emt 0:01:51]} f4 {[%emt 0:03:34]} 40. Qxd5 {[%emt 0:01:17]} f3 {[%emt 0:00:24]} 41. Qxh5+ {[%emt 0:05:37]} Kg8 {[%emt 0:08:13]} 42. Qd5+ {[%emt 0:01:13]} Kf8 {[%emt 0:00:15]} 43. Qa8+ {[%emt 0:03:15]} Kf7 {[%emt 0:00:49]} 44. Nxf3 {[%emt 0:02:15]} gxf3 {[%emt 0:00:24]} 45. Qxf3+ {[%emt 0:00:05]} Kg8 {[%emt 0:00:20]} 46. Qa8+ {[%emt 0:00:36]} Kf7 {[%emt 0:04:12]} 47. Qd5+ {[%emt 0:00:58]} Qe6 {[%emt 0:01:41]} 48. Qxe6+ {[%emt 0:02:18]} Kxe6 {[%emt 0:00:04]} 49. a5 {[%emt 0:03:03]} Kd6 {[%emt 0:00:14]} 50. f4 {[%emt 0:00:46]} Kc5 {[%emt 0:00:08]} 51. b6 {[%emt 0:00:06]} axb6 {[%emt 0:00:03]} 52. axb6 {[%emt 0:00:08]} Kxb6 {[%emt 0:00:04]} 53. Ke2 {[%emt 0:00:19]} Kc5 {[%emt 0:00:25]} 54. Kf3 {[%emt 0:00:12]} Kd5 {[%emt 0:00:13]} 55. g4 {[%emt 0:00:12]} Ke6 {[%emt 0:00:45]} 56. Ke4 {[%emt 0:00:17] Kd5+} 1-0

[Event "105th British-ch 2018"]
[Site "Hull"]
[Date "2018.08.03"]
[Round "7"]
[White "Jarmany, John"]
[Black "Jamroz, Krzysztof"]
[Result "1-0"]
[ECO "A08"]
[WhiteElo "2110"]
[BlackElo "2026"]
[Annotator "NA"]
[PlyCount "107"]
[EventDate "2018.07.28"]
[EventType "swiss"]
[EventCountry "GBR"]
[SourceTitle "playchess.com"]
[Source "ChessBase"]
[SourceQuality "1"]
[TimeControl "40/5400+30:1800+30"]

1. e4 {[%emt 0:00:00]} c5 {[%emt 0:00:00]} 2. Nf3 {[%emt 0:00:00]} e6 {[%emt 0:00:00]} 3. g3 {[%emt 0:02:40]} Nc6 {[%emt 0:01:00]} 4. Bg2 {[%emt 0:00:14]} g6 {[%emt 0:00:15]} 5. O-O {[%emt 0:00:45]} Bg7 {[%emt 0:00:04]} 6. d3 {[%emt 0:00:49]} Nge7 {[%emt 0:00:13]} 7. c3 {[%emt 0:00:26]} d5 {[%emt 0:00:13]} 8. Nbd2 {[%emt 0:05:06]} O-O {[%emt 0:00:22]} 9. Qc2 {[%emt 0:01:21]} b6 {[%emt 0:00:31]} 10. Re1 {[%emt 0:01:21]} Bb7 {[%emt 0:00:35]} 11. Nf1 {[%emt 0:03:34]} Rc8 {[%emt 0:01:34]} 12. Bg5 {[%emt 0:03:52]} h6 {[%emt 0:02:06]} 13. Bd2 {[%emt 0:00:43]} d4 {[%emt 0:01:49]} 14. c4 {[%emt 0:00:42]} g5 {[%emt 0:13:53]} 15. h3 {[%emt 0:12:44]} Ng6 {[%emt 0:01:52]} 16. a3 {[%emt 0:12:50]} a5 {[%emt 0:03:36]} 17. Rab1 {[%emt 0:02:43]} Qe7 {[%emt 0:00:25]} 18. Qb3 {[%emt 0:03:45]} Rb8 {[%emt 0:00:32]} 19. Qd1 {[%emt 0:12:06]} Ba6 {[%emt 0:03:14]} 20. a4 {[%emt 0:02:22]} Bc8 {[%emt 0:02:38]} 21. N3h2 {[%emt 0:02:17]} Qd6 {[%emt 0:01:58]} 22. Qh5 {[%emt 0:02:30]} Nge5 {[%emt 0:02:24]} 23. f4 {[%emt 0:04:10]} Nxd3 {[%emt 0:01:20]} 24. e5 {[%emt 0:00:20]} Ncxe5 {[%emt 0:06:00]} 25. fxe5 {[%emt 0:05:58]} Nxe5 {[%emt 0:00:51]} 26. Re2 {[%emt 0:03:57]} d3 {[%emt 0:05:35]} 27. Rxe5 {[%emt 0:04:12]} Qxe5 {[%emt 0:02:45]} 28. Ng4 {[%emt 0:00:50]} Qf5 {[%emt 0:01:07]} 29. Nxh6+ {[%emt 0:01:28]} Bxh6 {[%emt 0:00:01]} 30. Qxh6 {[%emt 0:00:07]} f6 {[%emt 0:02:44]} 31. Re1 {[%emt 0:01:22]} Qh7 {[%emt 0:01:49]} 32. Qxh7+ {[%emt 0:00:04]} Kxh7 {[%emt 0:00:04]} 33. Be4+ {[%emt 0:00:03]} f5 {[%emt 0:00:54]} 34. Bxd3 {[%emt 0:00:04]} Rd8 {[%emt 0:00:17]} 35. Bc2 {[%emt 0:00:51]} Kg6 {[%emt 0:00:11]} 36. Bc3 {[%emt 0:01:35]} Kf7 {[%emt 0:01:08]} 37. Ne3 {[%emt 0:02:24]} Rb7 {[%emt 0:01:58]} 38. Nd1 {[%emt 0:01:08]} Rbd7 {[%emt 0:00:39]} 39. Nf2 {[%emt 0:00:29]} Ba6 {[%emt 0:00:55]} 40. b3 {[%emt 0:00:42]} Bb7 {[%emt 0:00:21]} 41. Re3 {[%emt 0:33:33]} f4 {[%emt 0:37:03]} 42. Re1 {[%emt 0:00:00]} Bf3 {[%emt 0:00:00]} 43. g4 {[%emt 0:00:00]} Ke7 {[%emt 0:00:00]} 44. Re5 {[%emt 0:00:00]} Rg8 {[%emt 0:00:00]} 45. Bh7 {[%emt 0:00:00]} Rf8 {[%emt 0:00:00]} 46. Rxg5 {[%emt 0:00:00]} Bd1 {[%emt 0:00:00]} 47. Rg7+ {[%emt 0:00:00]} Rf7 {[%emt 0:00:00]} 48. Rxf7+ {[%emt 0:00:00]} Kxf7 {[%emt 0:00:00]} 49. Nxd1 {[%emt 0:00:00]} Rxd1+ {[%emt 0:00:00]} 50. Kf2 {[%emt 0:00:00]} e5 {[%emt 0:00:00]} 51. Bxe5 {[%emt 0:00:00]} Ke6 {[%emt 0:00:00]} 52. Bxf4 {[%emt 0:00:00]} Rh1 {[%emt 0:00:00]} 53. Kg2 {[%emt 0:00:00]} Ra1 {[%emt 0:00:00]} 54. g5 {[%emt 0:00:00]} 1-0